[Event "Titled Tuesday Blitz July 4 Late 2023"]
[White "Mamedov, Rauf"]
[Black "Jaskolka, Tomasz"]
[WhiteFideId "13401653"]
[BlackFideId "1170791"]
[WhiteElo "3047"]
[BlackElo "2586"]
[Result "1-0"]
[Round "2"]
[TimeControl "180+2"]
[Date "2023.07.04"]
[WhiteClock "0:01:12"]
[BlackClock "0:00:03"]
[Board "7"]

1. e4 {[%clk 0:03:00]}  d5 {[%clk 0:03:00]} 2. exd5 {[%clk 0:03:00]}  Nf6 {[%clk 0:03:01]} 3. d4 {[%clk 0:02:56]}  Bg4 {[%clk 0:03:00]} 4. Be2 {[%clk 0:02:56]}  Bxe2 {[%clk 0:03:00]} 5. Qxe2 {[%clk 0:02:56]}  Qxd5 {[%clk 0:03:01]} 6. Nf3 {[%clk 0:02:57]}  e6 {[%clk 0:02:58]} 7. c4 {[%clk 0:02:56]}  Qd7 {[%clk 0:02:57]} 8. O-O {[%clk 0:02:55]}  Be7 {[%clk 0:02:58]} 9. Nc3 {[%clk 0:02:55]}  O-O {[%clk 0:02:58]} 10. Bf4 {[%clk 0:02:56]}  c6 {[%clk 0:02:52]} 11. Rad1 {[%clk 0:02:55]}  Bd6 {[%clk 0:02:36]} 12. Ne5 {[%clk 0:02:53]}  Qe7 {[%clk 0:02:35]} 13. Bg5 {[%clk 0:02:52]}  h6 {[%clk 0:02:27]} 14. Bh4 {[%clk 0:02:52]}  Qd8 {[%clk 0:02:19]} 15. Rd3 {[%clk 0:02:50]}  Be7 {[%clk 0:02:19]} 16. Rfd1 {[%clk 0:02:39]}  Nbd7 {[%clk 0:02:18]} 17. Rg3 {[%clk 0:02:37]}  Ne4 {[%clk 0:01:34]} 18. Bxe7 {[%clk 0:02:29]}  Nxg3 {[%clk 0:01:34]} 19. hxg3 {[%clk 0:01:59]}  Qxe7 {[%clk 0:01:34]} 20. Nf3 {[%clk 0:02:00]}  Rad8 {[%clk 0:01:29]} 21. Re1 {[%clk 0:02:00]}  Rfe8 {[%clk 0:01:22]} 22. Qc2 {[%clk 0:01:59]}  Nf6 {[%clk 0:01:19]} 23. a3 {[%clk 0:01:56]}  Qc7 {[%clk 0:01:18]} 24. b4 {[%clk 0:01:50]}  b5 {[%clk 0:01:11]} 25. Qb3 {[%clk 0:01:46]}  bxc4 {[%clk 0:01:11]} 26. Qxc4 {[%clk 0:01:45]}  Nd5 {[%clk 0:01:10]} 27. Ne4 {[%clk 0:01:45]}  a5 {[%clk 0:00:59]} 28. Ne5 {[%clk 0:01:38]}  axb4 {[%clk 0:00:57]} 29. axb4 {[%clk 0:01:38]}  Rc8 {[%clk 0:00:48]} 30. Qc5 {[%clk 0:01:34]}  Re7 {[%clk 0:00:20]} 31. Rc1 {[%clk 0:01:32]}  f6 {[%clk 0:00:18]} 32. Nxc6 {[%clk 0:01:28]}  Rd7 {[%clk 0:00:18]} 33. b5 {[%clk 0:01:28]}  Kf7 {[%clk 0:00:15]} 34. Qc2 {[%clk 0:01:24]}  Ra8 {[%clk 0:00:04]} 35. Qe2 {[%clk 0:01:23]}  Qb6 {[%clk 0:00:05]} 36. Nc5 {[%clk 0:01:16]}  Rd6 {[%clk 0:00:03]} 37. Nxe6 {[%clk 0:01:13]}  Rxe6 {[%clk 0:00:03]} 38. Qh5+ {[%clk 0:01:13]}  Kg8 {[%clk 0:00:03]} 39. Qxd5 {[%clk 0:01:14]}  Re8 {[%clk 0:00:02]} 40. Re1 {[%clk 0:01:12]}  Kf7 {[%clk 0:00:02]} 41. Rxe6 {[%clk 0:01:12]}  Rxe6 {[%clk 0:00:03]} 42. Nd8+ {[%clk 0:01:13]}  Ke7 {[%clk 0:00:03]} 43. Nxe6 {[%clk 0:01:12]}  Qxe6 {[%clk 0:00:02]} 44. Qxe6+ {[%clk 0:01:13]}  Kxe6 {[%clk 0:00:03]} 45. b6 {[%clk 0:01:12]}  Kd5 {[%clk 0:00:03]} 46. b7 {[%clk 0:01:12]} 1-0


[Site "https://www.chess.com"]

[Event "Titled Tuesday Blitz July 4 Late 2023"]
[White "Ovchinnikov, Vsevolod"]
[Black "Lazavik, Denis"]
[WhiteFideId "24176842"]
[BlackFideId "13515110"]
[WhiteElo "2582"]
[BlackElo "3044"]
[Result "0-1"]
[Round "2"]
[TimeControl "180+2"]
[Date "2023.07.04"]
[WhiteClock "0:00:08"]
[BlackClock "0:01:39"]
[Board "8"]

1. Nf3 {[%clk 0:03:00]}  d5 {[%clk 0:02:59]} 2. c4 {[%clk 0:03:01]}  c6 {[%clk 0:02:58]} 3. b3 {[%clk 0:03:01]}  Nf6 {[%clk 0:02:58]} 4. Bb2 {[%clk 0:03:02]}  Bf5 {[%clk 0:02:58]} 5. g3 {[%clk 0:03:01]}  e6 {[%clk 0:02:59]} 6. Bg2 {[%clk 0:03:02]}  Be7 {[%clk 0:02:58]} 7. O-O {[%clk 0:03:03]}  O-O {[%clk 0:02:58]} 8. d3 {[%clk 0:03:03]}  h6 {[%clk 0:02:58]} 9. Nbd2 {[%clk 0:03:04]}  Nbd7 {[%clk 0:02:58]} 10. a3 {[%clk 0:03:04]}  a5 {[%clk 0:02:59]} 11. Qc2 {[%clk 0:03:04]}  Bh7 {[%clk 0:02:56]} 12. Bc3 {[%clk 0:03:04]}  c5 {[%clk 0:02:56]} 13. cxd5 {[%clk 0:02:48]}  exd5 {[%clk 0:02:56]} 14. e4 {[%clk 0:02:48]}  dxe4 {[%clk 0:02:48]} 15. dxe4 {[%clk 0:02:48]}  Re8 {[%clk 0:02:47]} 16. Rfe1 {[%clk 0:02:46]}  Bf8 {[%clk 0:02:47]} 17. Re2 {[%clk 0:01:55]}  b5 {[%clk 0:02:44]} 18. Rae1 {[%clk 0:01:56]}  a4 {[%clk 0:02:42]} 19. Bb2 {[%clk 0:01:05]}  Qb6 {[%clk 0:02:18]} 20. bxa4 {[%clk 0:01:03]}  Rxa4 {[%clk 0:02:17]} 21. h3 {[%clk 0:00:37]}  c4 {[%clk 0:02:14]} 22. Qc3 {[%clk 0:00:24]}  Nc5 {[%clk 0:01:46]} 23. e5 {[%clk 0:00:20]}  Nd5 {[%clk 0:01:46]} 24. Qd4 {[%clk 0:00:18]}  Rd8 {[%clk 0:01:40]} 25. Qg4 {[%clk 0:00:14]}  c3 {[%clk 0:01:40]} 26. Bxc3 {[%clk 0:00:08]}  Rxg4 {[%clk 0:01:39]} 0-1


[Site "https://www.chess.com"]

[Event "Titled Tuesday Blitz July 4 Late 2023"]
[White "Bortnyk, Olexandr"]
[Black "Czerw, Dawid"]
[WhiteFideId "14120828"]
[BlackFideId "1145746"]
[WhiteElo "3027"]
[BlackElo "2579"]
[Result "1-0"]
[Round "2"]
[TimeControl "180+2"]
[Date "2023.07.04"]
[WhiteClock "0:01:14"]
[BlackClock "0:00:03"]
[Board "9"]

1. e4 {[%clk 0:02:59]}  c5 {[%clk 0:03:00]} 2. Be2 {[%clk 0:02:56]}  Nc6 {[%clk 0:02:59]} 3. d3 {[%clk 0:02:56]}  g6 {[%clk 0:02:59]} 4. f4 {[%clk 0:02:56]}  Bg7 {[%clk 0:02:59]} 5. Nf3 {[%clk 0:02:57]}  e6 {[%clk 0:02:59]} 6. c3 {[%clk 0:02:57]}  Nge7 {[%clk 0:02:59]} 7. Be3 {[%clk 0:02:57]}  d6 {[%clk 0:02:53]} 8. O-O {[%clk 0:02:55]}  O-O {[%clk 0:02:53]} 9. a4 {[%clk 0:02:54]}  b6 {[%clk 0:02:48]} 10. Nbd2 {[%clk 0:02:49]}  f5 {[%clk 0:02:39]} 11. Qe1 {[%clk 0:02:20]}  h6 {[%clk 0:02:32]} 12. Qg3 {[%clk 0:02:17]}  Kh7 {[%clk 0:02:27]} 13. Rad1 {[%clk 0:02:11]}  Ng8 {[%clk 0:02:22]} 14. Nh4 {[%clk 0:02:08]}  Qe8 {[%clk 0:02:22]} 15. Nc4 {[%clk 0:02:07]}  Nge7 {[%clk 0:01:58]} 16. Nxd6 {[%clk 0:02:06]}  Qd7 {[%clk 0:01:58]} 17. e5 {[%clk 0:02:05]}  Rg8 {[%clk 0:01:51]} 18. d4 {[%clk 0:01:55]}  cxd4 {[%clk 0:01:49]} 19. Bxd4 {[%clk 0:01:56]}  Bf8 {[%clk 0:01:45]} 20. Bc4 {[%clk 0:01:45]}  Nxd4 {[%clk 0:01:29]} 21. Rxd4 {[%clk 0:01:46]}  Nc6 {[%clk 0:01:20]} 22. Ne4 {[%clk 0:01:36]}  fxe4 {[%clk 0:01:02]} 23. Rxd7+ {[%clk 0:01:36]}  Bxd7 {[%clk 0:01:02]} 24. Rd1 {[%clk 0:01:32]}  Rd8 {[%clk 0:00:59]} 25. Qg4 {[%clk 0:01:26]}  Bc5+ {[%clk 0:00:49]} 26. Kh1 {[%clk 0:01:26]}  a5 {[%clk 0:00:46]} 27. Rxd7+ {[%clk 0:01:23]}  Rxd7 {[%clk 0:00:32]} 28. Bxe6 {[%clk 0:01:23]}  Rdg7 {[%clk 0:00:24]} 29. Bxg8+ {[%clk 0:01:23]}  Rxg8 {[%clk 0:00:25]} 30. Qd7+ {[%clk 0:01:22]}  Ne7 {[%clk 0:00:26]} 31. f5 {[%clk 0:01:17]}  gxf5 {[%clk 0:00:22]} 32. Nxf5 {[%clk 0:01:18]}  Rf8 {[%clk 0:00:22]} 33. g4 {[%clk 0:01:16]}  Rf7 {[%clk 0:00:14]} 34. Qe6 {[%clk 0:01:16]}  Nxf5 {[%clk 0:00:08]} 35. Qxf7+ {[%clk 0:01:15]}  Ng7 {[%clk 0:00:08]} 36. e6 {[%clk 0:01:15]}  e3 {[%clk 0:00:03]} 37. e7 {[%clk 0:01:14]} 1-0


[Site "https://www.chess.com"]

[Event "Titled Tuesday Blitz July 4 Late 2023"]
[White "Sowa, Ryan"]
[Black "Bluebaum, Matthias"]
[WhiteFideId "30901693"]
[BlackFideId "24651516"]
[WhiteElo "2577"]
[BlackElo "3021"]
[Result "0-1"]
[Round "2"]
[TimeControl "180+2"]
[Date "2023.07.04"]
[WhiteClock "0:00:49"]
[BlackClock "0:01:37"]
[Board "10"]

1. Nf3 {[%clk 0:02:59]}  d5 {[%clk 0:03:00]} 2. b3 {[%clk 0:02:58]}  c5 {[%clk 0:02:59]} 3. Bb2 {[%clk 0:02:57]}  Nc6 {[%clk 0:03:00]} 4. e3 {[%clk 0:02:56]}  a6 {[%clk 0:03:00]} 5. d4 {[%clk 0:02:56]}  cxd4 {[%clk 0:03:00]} 6. Nxd4 {[%clk 0:02:57]}  Nf6 {[%clk 0:03:01]} 7. Be2 {[%clk 0:02:57]}  e6 {[%clk 0:03:00]} 8. O-O {[%clk 0:02:57]}  Bd6 {[%clk 0:03:01]} 9. Nd2 {[%clk 0:02:57]}  e5 {[%clk 0:03:01]} 10. Nxc6 {[%clk 0:02:56]}  bxc6 {[%clk 0:03:02]} 11. c4 {[%clk 0:02:56]}  O-O {[%clk 0:03:03]} 12. cxd5 {[%clk 0:02:57]}  cxd5 {[%clk 0:03:04]} 13. Nf3 {[%clk 0:02:57]}  Qe7 {[%clk 0:03:03]} 14. Rc1 {[%clk 0:02:57]}  Bb7 {[%clk 0:03:04]} 15. Qd2 {[%clk 0:02:54]}  Ne4 {[%clk 0:03:04]} 16. Qc2 {[%clk 0:02:55]}  f5 {[%clk 0:02:59]} 17. Qb1 {[%clk 0:02:50]}  f4 {[%clk 0:02:54]} 18. exf4 {[%clk 0:02:46]}  Rxf4 {[%clk 0:02:55]} 19. Qa1 {[%clk 0:02:41]}  d4 {[%clk 0:02:51]} 20. Rfe1 {[%clk 0:02:35]}  Raf8 {[%clk 0:02:47]} 21. Qb1 {[%clk 0:01:53]}  Ng5 {[%clk 0:02:26]} 22. Nxg5 {[%clk 0:01:20]}  Qxg5 {[%clk 0:02:27]} 23. f3 {[%clk 0:01:16]}  Bxf3 {[%clk 0:02:10]} 24. Bxf3 {[%clk 0:01:16]}  Rxf3 {[%clk 0:02:10]} 25. Qe4 {[%clk 0:01:16]}  Rf2 {[%clk 0:02:06]} 26. Rf1 {[%clk 0:01:03]}  Rxb2 {[%clk 0:01:42]} 27. Qd5+ {[%clk 0:00:49]}  Kh8 {[%clk 0:01:41]} 28. Rxf8+ {[%clk 0:00:50]}  Bxf8 {[%clk 0:01:42]} 29. Rf1 {[%clk 0:00:50]}  Qe3+ {[%clk 0:01:37]} 30. Kh1 {[%clk 0:00:49]} 0-1


[Site "https://www.chess.com"]

[Event "Titled Tuesday Blitz July 4 Late 2023"]
[White "Martinez Alcantara, Jose Eduardo"]
[Black "Petesch, Gabriel"]
[WhiteFideId "3805662"]
[BlackFideId "2032465"]
[WhiteElo "3017"]
[BlackElo "2573"]
[Result "1-0"]
[Round "2"]
[TimeControl "180+2"]
[Date "2023.07.04"]
[WhiteClock "0:01:27"]
[BlackClock "0:00:02"]
[Board "11"]

1. e4 {[%clk 0:03:00]}  d6 {[%clk 0:02:15]} 2. d4 {[%clk 0:03:00]}  e5 {[%clk 0:02:15]} 3. c3 {[%clk 0:02:57]}  Nf6 {[%clk 0:02:14]} 4. Bd3 {[%clk 0:02:58]}  Be7 {[%clk 0:02:13]} 5. Nf3 {[%clk 0:02:58]}  Nc6 {[%clk 0:02:07]} 6. O-O {[%clk 0:02:57]}  O-O {[%clk 0:02:04]} 7. h3 {[%clk 0:02:56]}  Re8 {[%clk 0:01:44]} 8. Re1 {[%clk 0:02:54]}  Bf8 {[%clk 0:01:38]} 9. Nbd2 {[%clk 0:02:45]}  g6 {[%clk 0:01:15]} 10. Nf1 {[%clk 0:02:40]}  Bg7 {[%clk 0:01:07]} 11. Ng3 {[%clk 0:02:40]}  Bd7 {[%clk 0:01:06]} 12. Be3 {[%clk 0:02:37]}  a6 {[%clk 0:01:06]} 13. Qd2 {[%clk 0:02:36]}  Qe7 {[%clk 0:01:05]} 14. Rad1 {[%clk 0:02:35]}  Rad8 {[%clk 0:01:03]} 15. Bg5 {[%clk 0:02:34]}  Bc8 {[%clk 0:01:00]} 16. Qc1 {[%clk 0:02:31]}  Bd7 {[%clk 0:00:58]} 17. a3 {[%clk 0:02:30]}  a5 {[%clk 0:00:53]} 18. d5 {[%clk 0:02:28]}  Nb8 {[%clk 0:00:50]} 19. b4 {[%clk 0:02:29]}  axb4 {[%clk 0:00:51]} 20. axb4 {[%clk 0:02:29]}  Ba4 {[%clk 0:00:50]} 21. Bc2 {[%clk 0:02:26]}  Bxc2 {[%clk 0:00:48]} 22. Qxc2 {[%clk 0:02:27]}  Nbd7 {[%clk 0:00:48]} 23. c4 {[%clk 0:02:27]}  Ra8 {[%clk 0:00:46]} 24. Be3 {[%clk 0:02:28]}  b6 {[%clk 0:00:42]} 25. Ra1 {[%clk 0:02:27]}  Qf8 {[%clk 0:00:35]} 26. Qb2 {[%clk 0:02:04]}  Rxa1 {[%clk 0:00:35]} 27. Rxa1 {[%clk 0:02:05]}  Ra8 {[%clk 0:00:35]} 28. Ra3 {[%clk 0:02:05]}  Rxa3 {[%clk 0:00:23]} 29. Qxa3 {[%clk 0:02:06]}  Qb8 {[%clk 0:00:23]} 30. Qa4 {[%clk 0:01:59]}  Bf8 {[%clk 0:00:22]} 31. Nd2 {[%clk 0:01:58]}  Qd8 {[%clk 0:00:18]} 32. Ne2 {[%clk 0:01:59]}  Nh5 {[%clk 0:00:17]} 33. Qa7 {[%clk 0:01:57]}  f5 {[%clk 0:00:15]} 34. f3 {[%clk 0:01:56]}  Ndf6 {[%clk 0:00:14]} 35. c5 {[%clk 0:01:53]}  bxc5 {[%clk 0:00:15]} 36. bxc5 {[%clk 0:01:54]}  Nd7 {[%clk 0:00:13]} 37. c6 {[%clk 0:01:52]}  Nc5 {[%clk 0:00:13]} 38. Bxc5 {[%clk 0:01:36]}  dxc5 {[%clk 0:00:14]} 39. Nc4 {[%clk 0:01:37]}  fxe4 {[%clk 0:00:12]} 40. fxe4 {[%clk 0:01:37]}  Nf6 {[%clk 0:00:11]} 41. Nc3 {[%clk 0:01:33]}  Bg7 {[%clk 0:00:09]} 42. d6 {[%clk 0:01:32]}  Ne8 {[%clk 0:00:08]} 43. d7 {[%clk 0:01:28]}  Nf6 {[%clk 0:00:08]} 44. Nxe5 {[%clk 0:01:27]}  Nxe4 {[%clk 0:00:02]} 45. Qa2+ {[%clk 0:01:27]} 1-0


[Site "https://www.chess.com"]

[Event "Titled Tuesday Blitz July 4 Late 2023"]
[White "Vovk, Orest"]
[Black "Tahbaz, Arash"]
[WhiteFideId "14113490"]
[BlackFideId "12528846"]
[WhiteElo "2564"]
[BlackElo "3002"]
[Result "0-1"]
[Round "2"]
[TimeControl "180+2"]
[Date "2023.07.04"]
[WhiteClock "0:00:43"]
[BlackClock "0:01:09"]
[Board "14"]

1. g4 {[%clk 0:03:00]}  d5 {[%clk 0:02:39]} 2. Bg2 {[%clk 0:02:59]}  Bxg4 {[%clk 0:02:35]} 3. c4 {[%clk 0:02:59]}  c6 {[%clk 0:02:36]} 4. Qb3 {[%clk 0:02:58]}  e6 {[%clk 0:02:20]} 5. cxd5 {[%clk 0:02:55]}  exd5 {[%clk 0:02:13]} 6. Qxb7 {[%clk 0:02:54]}  Nd7 {[%clk 0:02:13]} 7. Nc3 {[%clk 0:02:53]}  Rc8 {[%clk 0:01:57]} 8. d4 {[%clk 0:02:52]}  Ngf6 {[%clk 0:01:55]} 9. Nf3 {[%clk 0:02:50]}  Bd6 {[%clk 0:01:52]} 10. Qa6 {[%clk 0:02:41]}  O-O {[%clk 0:01:51]} 11. Be3 {[%clk 0:02:37]}  Qb6 {[%clk 0:01:45]} 12. Qxb6 {[%clk 0:02:36]}  axb6 {[%clk 0:01:46]} 13. O-O-O {[%clk 0:02:28]}  b5 {[%clk 0:01:43]} 14. h3 {[%clk 0:02:18]}  Bf5 {[%clk 0:01:34]} 15. Nh4 {[%clk 0:02:13]}  Be6 {[%clk 0:01:34]} 16. f4 {[%clk 0:02:04]}  Nb6 {[%clk 0:01:32]} 17. f5 {[%clk 0:01:57]}  Bd7 {[%clk 0:01:32]} 18. Bg5 {[%clk 0:01:57]}  Rfe8 {[%clk 0:01:25]} 19. Bxf6 {[%clk 0:01:52]}  gxf6 {[%clk 0:01:24]} 20. e4 {[%clk 0:01:52]}  b4 {[%clk 0:01:21]} 21. Ne2 {[%clk 0:01:38]}  dxe4 {[%clk 0:01:21]} 22. Rhf1 {[%clk 0:01:29]}  Nd5 {[%clk 0:01:20]} 23. Kb1 {[%clk 0:01:26]}  Ne3 {[%clk 0:01:18]} 24. Rg1 {[%clk 0:01:18]}  Nxd1 {[%clk 0:01:16]} 25. Rxd1 {[%clk 0:01:19]}  Kf8 {[%clk 0:01:12]} 26. Rf1 {[%clk 0:01:04]}  c5 {[%clk 0:01:12]} 27. dxc5 {[%clk 0:01:00]}  Bxc5 {[%clk 0:01:12]} 28. Nf4 {[%clk 0:00:58]}  Bb5 {[%clk 0:01:11]} 29. Nd5 {[%clk 0:00:45]}  Bd3+ {[%clk 0:01:08]} 30. Ka1 {[%clk 0:00:45]}  Bxf1 {[%clk 0:01:08]} 31. Bxf1 {[%clk 0:00:43]}  Bf2 {[%clk 0:01:09]} 0-1


[Site "https://www.chess.com"]

[Event "Titled Tuesday Blitz July 4 Late 2023"]
[White "Bruedigam, Martin"]
[Black "Deac, Bogdan-Daniel"]
[WhiteFideId "24608033"]
[BlackFideId "1226380"]
[WhiteElo "2561"]
[BlackElo "2997"]
[Result "0-1"]
[Round "2"]
[TimeControl "180+2"]
[Date "2023.07.04"]
[WhiteClock "0:00:04"]
[BlackClock "0:00:07"]
[Board "15"]

1. c4 {[%clk 0:03:00]}  f5 {[%clk 0:02:57]} 2. d4 {[%clk 0:02:59]}  Nf6 {[%clk 0:02:57]} 3. Nc3 {[%clk 0:02:55]}  e6 {[%clk 0:02:57]} 4. Bg5 {[%clk 0:02:49]}  Bb4 {[%clk 0:02:56]} 5. e3 {[%clk 0:02:49]}  h6 {[%clk 0:02:51]} 6. Bxf6 {[%clk 0:02:49]}  Bxc3+ {[%clk 0:02:50]} 7. bxc3 {[%clk 0:02:48]}  Qxf6 {[%clk 0:02:51]} 8. Bd3 {[%clk 0:02:49]}  d6 {[%clk 0:02:49]} 9. f4 {[%clk 0:02:43]}  e5 {[%clk 0:02:45]} 10. Qh5+ {[%clk 0:02:30]}  g6 {[%clk 0:02:36]} 11. Qh3 {[%clk 0:02:29]}  e4 {[%clk 0:02:33]} 12. Bc2 {[%clk 0:02:27]}  Nd7 {[%clk 0:02:17]} 13. Ne2 {[%clk 0:02:17]}  c5 {[%clk 0:02:12]} 14. Ba4 {[%clk 0:02:16]}  Kd8 {[%clk 0:01:56]} 15. Bxd7 {[%clk 0:02:14]}  Bxd7 {[%clk 0:01:34]} 16. Rb1 {[%clk 0:02:03]}  Kc7 {[%clk 0:01:32]} 17. Qg3 {[%clk 0:02:01]}  Qf7 {[%clk 0:01:21]} 18. O-O {[%clk 0:01:23]}  Qxc4 {[%clk 0:01:14]} 19. Rb2 {[%clk 0:01:21]}  Rhg8 {[%clk 0:01:07]} 20. Qh4 {[%clk 0:01:16]}  h5 {[%clk 0:01:01]} 21. Rd1 {[%clk 0:01:06]}  Qf7 {[%clk 0:00:47]} 22. c4 {[%clk 0:00:45]}  Rac8 {[%clk 0:00:31]} 23. dxc5 {[%clk 0:00:30]}  dxc5 {[%clk 0:00:30]} 24. Nc3 {[%clk 0:00:30]}  Kb8 {[%clk 0:00:22]} 25. Nd5 {[%clk 0:00:24]}  Rge8 {[%clk 0:00:17]} 26. Qe1 {[%clk 0:00:21]}  Bc6 {[%clk 0:00:15]} 27. Qa5 {[%clk 0:00:20]}  Red8 {[%clk 0:00:15]} 28. Rbd2 {[%clk 0:00:19]}  Bxd5 {[%clk 0:00:10]} 29. Rxd5 {[%clk 0:00:18]}  Rxd5 {[%clk 0:00:08]} 30. Rxd5 {[%clk 0:00:18]}  b6 {[%clk 0:00:08]} 31. Qb5 {[%clk 0:00:19]}  Qe6 {[%clk 0:00:06]} 32. a4 {[%clk 0:00:19]}  Qc6 {[%clk 0:00:06]} 33. Qb3 {[%clk 0:00:19]}  Kc7 {[%clk 0:00:06]} 34. Qd1 {[%clk 0:00:20]}  Qe6 {[%clk 0:00:05]} 35. h3 {[%clk 0:00:19]}  Qe7 {[%clk 0:00:05]} 36. Re5 {[%clk 0:00:19]}  Qf6 {[%clk 0:00:05]} 37. Rd5 {[%clk 0:00:18]}  Rd8 {[%clk 0:00:05]} 38. Kh2 {[%clk 0:00:16]}  Rxd5 {[%clk 0:00:05]} 39. Qxd5 {[%clk 0:00:17]}  Qc6 {[%clk 0:00:05]} 40. Qf7+ {[%clk 0:00:17]}  Kb8 {[%clk 0:00:05]} 41. h4 {[%clk 0:00:15]}  Ka8 {[%clk 0:00:04]} 42. Qg7 {[%clk 0:00:11]}  Kb8 {[%clk 0:00:04]} 43. Qf7 {[%clk 0:00:11]}  Qd6 {[%clk 0:00:05]} 44. Qg7 {[%clk 0:00:11]}  a6 {[%clk 0:00:05]} 45. Qf7 {[%clk 0:00:10]}  Kc8 {[%clk 0:00:05]} 46. Qa7 {[%clk 0:00:10]}  a5 {[%clk 0:00:05]} 47. Qa8+ {[%clk 0:00:09]}  Kd7 {[%clk 0:00:05]} 48. Qb7+ {[%clk 0:00:09]}  Ke8 {[%clk 0:00:05]} 49. Kh3 {[%clk 0:00:09]}  Qe6 {[%clk 0:00:04]} 50. Kh2 {[%clk 0:00:08]}  Qd6 {[%clk 0:00:04]} 51. Kh3 {[%clk 0:00:07]}  Kd8 {[%clk 0:00:05]} 52. Kh2 {[%clk 0:00:08]}  Qf6 {[%clk 0:00:04]} 53. Kh3 {[%clk 0:00:07]}  Qe6 {[%clk 0:00:05]} 54. Kh2 {[%clk 0:00:07]}  Qd6 {[%clk 0:00:05]} 55. Kh3 {[%clk 0:00:07]}  Qc7 {[%clk 0:00:05]} 56. Qd5+ {[%clk 0:00:07]}  Qd7 {[%clk 0:00:05]} 57. Qg8+ {[%clk 0:00:07]}  Qe8 {[%clk 0:00:06]} 58. Qd5+ {[%clk 0:00:07]}  Kc7 {[%clk 0:00:06]} 59. Kh2 {[%clk 0:00:07]}  Qxa4 {[%clk 0:00:05]} 60. Qf7+ {[%clk 0:00:07]}  Qd7 {[%clk 0:00:06]} 61. Qxg6 {[%clk 0:00:07]}  a4 {[%clk 0:00:06]} 62. Qxh5 {[%clk 0:00:08]}  a3 {[%clk 0:00:06]} 63. Qe2 {[%clk 0:00:08]}  Qd3 {[%clk 0:00:06]} 64. Qa2 {[%clk 0:00:04]}  Qxe3 {[%clk 0:00:06]} 65. g3 {[%clk 0:00:04]}  Qc3 {[%clk 0:00:05]} 66. h5 {[%clk 0:00:05]}  Qb2+ {[%clk 0:00:06]} 67. Qxb2 {[%clk 0:00:05]}  axb2 {[%clk 0:00:06]} 68. h6 {[%clk 0:00:04]}  b1=Q {[%clk 0:00:07]} 0-1


[Site "https://www.chess.com"]

[Event "Titled Tuesday Blitz July 4 Late 2023"]
[White "He, Anthony"]
[Black "The_Sherman_Variation"]
[WhiteFideId "2088215"]
[WhiteElo "2979"]
[BlackElo "2558"]
[Result "1-0"]
[Round "2"]
[TimeControl "180+2"]
[Date "2023.07.04"]
[WhiteClock "0:00:33"]
[BlackClock "0:00:03"]
[Board "17"]

1. e4 {[%clk 0:02:59]}  c5 {[%clk 0:03:00]} 2. c3 {[%clk 0:02:57]}  d5 {[%clk 0:02:55]} 3. exd5 {[%clk 0:02:57]}  Qxd5 {[%clk 0:02:55]} 4. d4 {[%clk 0:02:57]}  Nc6 {[%clk 0:02:55]} 5. Nf3 {[%clk 0:02:57]}  Bg4 {[%clk 0:02:52]} 6. Be2 {[%clk 0:02:57]}  Nf6 {[%clk 0:02:50]} 7. O-O {[%clk 0:02:54]}  e6 {[%clk 0:02:50]} 8. h3 {[%clk 0:02:54]}  Bh5 {[%clk 0:02:50]} 9. Be3 {[%clk 0:02:46]}  cxd4 {[%clk 0:02:45]} 10. cxd4 {[%clk 0:02:44]}  Be7 {[%clk 0:02:35]} 11. Nc3 {[%clk 0:02:45]}  Qd8 {[%clk 0:02:20]} 12. Qb3 {[%clk 0:02:41]}  O-O {[%clk 0:02:15]} 13. Rfd1 {[%clk 0:02:33]}  Na5 {[%clk 0:02:05]} 14. Qa4 {[%clk 0:02:32]}  Nd5 {[%clk 0:01:58]} 15. Rac1 {[%clk 0:02:17]}  Nxe3 {[%clk 0:01:56]} 16. fxe3 {[%clk 0:02:17]}  a6 {[%clk 0:01:54]} 17. Ne5 {[%clk 0:02:14]}  Bxe2 {[%clk 0:01:49]} 18. Nxe2 {[%clk 0:02:15]}  b5 {[%clk 0:01:47]} 19. Qc2 {[%clk 0:02:14]}  Rc8 {[%clk 0:01:43]} 20. Qe4 {[%clk 0:02:13]}  Bf6 {[%clk 0:01:28]} 21. Ng4 {[%clk 0:01:47]}  Nc4 {[%clk 0:01:23]} 22. b3 {[%clk 0:01:42]}  Nd6 {[%clk 0:01:20]} 23. Rxc8 {[%clk 0:01:38]}  Nxe4 {[%clk 0:01:14]} 24. Rxd8 {[%clk 0:01:39]}  Rxd8 {[%clk 0:01:11]} 25. Rc1 {[%clk 0:01:39]}  Bg5 {[%clk 0:01:07]} 26. g3 {[%clk 0:01:07]}  h5 {[%clk 0:01:04]} 27. h4 {[%clk 0:01:08]}  hxg4 {[%clk 0:01:01]} 28. hxg5 {[%clk 0:01:08]}  Nxg5 {[%clk 0:01:02]} 29. Rc6 {[%clk 0:01:08]}  Ra8 {[%clk 0:00:58]} 30. Nc3 {[%clk 0:01:05]}  Kf8 {[%clk 0:00:46]} 31. Rc7 {[%clk 0:01:05]}  e5 {[%clk 0:00:34]} 32. d5 {[%clk 0:01:04]}  f6 {[%clk 0:00:30]} 33. a3 {[%clk 0:01:00]}  Nf7 {[%clk 0:00:29]} 34. Ne4 {[%clk 0:01:00]}  Rd8 {[%clk 0:00:30]} 35. Nc3 {[%clk 0:00:51]}  Nd6 {[%clk 0:00:29]} 36. Ra7 {[%clk 0:00:45]}  Rc8 {[%clk 0:00:27]} 37. Na2 {[%clk 0:00:43]}  Nf5 {[%clk 0:00:25]} 38. Nb4 {[%clk 0:00:40]}  Nxe3 {[%clk 0:00:23]} 39. d6 {[%clk 0:00:40]}  Rd8 {[%clk 0:00:23]} 40. d7 {[%clk 0:00:39]}  Nd5 {[%clk 0:00:06]} 41. Nxd5 {[%clk 0:00:39]}  Kf7 {[%clk 0:00:06]} 42. Nb6 {[%clk 0:00:36]}  Ke6 {[%clk 0:00:06]} 43. Rxa6 {[%clk 0:00:37]}  Ke7 {[%clk 0:00:06]} 44. Kf2 {[%clk 0:00:36]}  Rb8 {[%clk 0:00:06]} 45. Ke3 {[%clk 0:00:35]}  Kd8 {[%clk 0:00:06]} 46. Ke4 {[%clk 0:00:34]}  g6 {[%clk 0:00:07]} 47. Kd5 {[%clk 0:00:33]}  Ke7 {[%clk 0:00:07]} 48. a4 {[%clk 0:00:30]}  bxa4 {[%clk 0:00:07]} 49. bxa4 {[%clk 0:00:31]}  Rd8 {[%clk 0:00:07]} 50. a5 {[%clk 0:00:31]}  Rb8 {[%clk 0:00:08]} 51. Ra7 {[%clk 0:00:30]}  Rh8 {[%clk 0:00:08]} 52. a6 {[%clk 0:00:29]}  Rh1 {[%clk 0:00:08]} 53. Ra8 {[%clk 0:00:30]}  Rd1+ {[%clk 0:00:08]} 54. Kc6 {[%clk 0:00:30]}  Rc1+ {[%clk 0:00:08]} 55. Kb7 {[%clk 0:00:30]}  Rd1 {[%clk 0:00:09]} 56. Re8+ {[%clk 0:00:31]}  Kf7 {[%clk 0:00:09]} 57. d8=Q {[%clk 0:00:32]}  Rxd8 {[%clk 0:00:07]} 58. Rxd8 {[%clk 0:00:33]}  Ke6 {[%clk 0:00:08]} 59. a7 {[%clk 0:00:33]}  Kf5 {[%clk 0:00:09]} 60. a8=Q {[%clk 0:00:34]}  g5 {[%clk 0:00:10]} 61. Qc8+ {[%clk 0:00:34]}  Ke4 {[%clk 0:00:09]} 62. Qxg4+ {[%clk 0:00:33]}  Ke3 {[%clk 0:00:07]} 63. Nc4+ {[%clk 0:00:34]}  Kf2 {[%clk 0:00:04]} 64. Rd2+ {[%clk 0:00:33]}  Kg1 {[%clk 0:00:03]} 65. Qd1# {[%clk 0:00:33]} 1-0


[Site "https://www.chess.com"]